[Event "European Women-ch 2023"]
[Site "Petrovac"]
[Date "2023.03.25"]
[Round "7.3"]
[White "Mammadzada, Gunay"]
[Black "Hrebenshchykova, Yelyzaveta"]
[Result "1/2-1/2"]
[Annotator "TA"]
[ECO "C07"]
[WhiteElo "2472"]
[BlackElo "2289"]
[PlyCount "66"]
[EventDate "2023.03.15"]
[EventType "swiss"]
[EventCountry "MNE"]
[SourceTitle "playchess.com"]
[Source "ChessBase"]
[SourceQuality "1"]
[TimeControl "40/5400+30:1800+30"]

{[%evp 22,66,29,18,41,0,12,0,35,-14,0,-33,-9,-32,-29,-47,0,-39,0,-40,198,198,195,-268,187,201,272,0,390,0,0,0,0,0,0,0,0,0,0,0,0,0,0,0,0,0,0]} 1. e4 {[%emt 0:00:05]} e6 {[%emt 0:00:06]} 2. d4 {[%emt 0:00:27]} d5 {[%emt 0:00:05]} 3. Nd2 {[%emt 0:00:35]} c5 {[%emt 0:00:25]} 4. exd5 {[%emt 0:00:49]} Qxd5 {[%emt 0:00:12]} 5. Ngf3 {[%emt 0:00:14]} cxd4 {[%emt 0:00:15]} 6. Bc4 {[%emt 0:00:05]} Qd6 {[%emt 0:00:11]} 7. O-O {[%emt 0:00:09]} Nf6 {[%emt 0:04:54]} 8. Nb3 {[%emt 0:00:25]} Nc6 {[%emt 0:00:05]} 9. Nbxd4 {[%emt 0:00:20]} Nxd4 {[%emt 0:00:05]} 10. Nxd4 {[%emt 0:00:05]} a6 {[%emt 0:00:04]} 11. Re1 {[%emt 0:03:39]} Qc7 {[%emt 0:00:49]} 12. Qe2 {[%emt 0:15:03]} Bd6 {[%emt 0:08:07] C07: French Tarrasch: 3...c5, 4 Ngf3 and 4 exd5 Qxd5.} 13. h3 {[%emt 0:22:11]} O-O {[%emt 0:11:45]} 14. Bg5 {[%emt 0:06:34]} Ne4 {[%emt 0:03:22][%mdl 64] Deflection} 15. Bh4 {[%emt 0:04:49]} (15. Qxe4 $14 {is superior.} Qxc4 16. Rad1) 15... Nc5 $11 {[%emt 0:07:46] [#]} 16. Qf3 $146 {[%emt 0:14:22]} ({Predecessor:} 16. b4 Na4 17. Bd3 Bxb4 18. Qh5 g6 19. Qh6 Re8 20. Bf6 Bf8 21. Qh4 Bd7 22. Nf3 {1-0 Soraas,T (2266)-Bruaset,E (2074) Helsingor Xtracon op 2019 (10)}) 16... Bd7 {[%emt 0:22:30]} (16... b5 $5 17. Bxb5 (17. Qxa8 Bb7 $17) 17... Rb8 $15) 17. b4 {[%emt 0:08:46]} Na4 {[%emt 0:01:34][%csl LRb4,LRc4]} 18. Bd3 {[%emt 0:00:35][%cal Oh4f6]} b5 {[%emt 0:11:24]} (18... Rfe8 $15) 19. Re3 {[%emt 0:08:31][%cal Oh4f6]} Rae8 {[%emt 0:02:35]} (19... Rfc8 {is interesting.} 20. Rf1 a5 21. bxa5 Nc5) 20. Rae1 {[%emt 0:07:06][%cal Od3h7]} Nb2 $2 {[%emt 0:01:18] [#]} (20... g6 $15 {keeps the upper hand.} 21. Bf6 Bxb4) 21. Bxh7+ $1 $18 {[%emt 0:02:31][%mdl 576] Decoy} Kxh7 {[%emt 0:00:28]} 22. Qh5+ $1 {[%emt 0:00:00]} Kg8 {[%emt 0:00:06] [#] And now ...g6 would win.} 23. Bf6 $1 {[%emt 0:00:08][%mdl 512] Intending Qg5 and mate.} gxf6 {[%emt 0:06:33]} (23... Bh2+ 24. Kh1) 24. Re4 $2 {[%emt 0:00:08]} (24. Qg4+ $18 Kh8 25. Qh5+ Kg8 26. Qg4+ Kh8 27. Qh5+ Kg8) 24... Bf4 $2 {[%emt 0:01:15][%mdl 8192] [#]} (24... Bxb4 $2 25. Rg4#) (24... e5 $2 25. Rh4 exd4 26. Qh8#) (24... Bh2+ $11 25. Kh1 Bf4) 25. R1e3 $1 {[%emt 0:00:01][%mdl 512]} f5 $11 {[%emt 0:03:50] The position is equal.} 26. Rxf4 $40 {[%emt 0:03:16][%mdl 192] Remove Defender. White has some attack.} Qxf4 {[%emt 0:00:08]} 27. Ne2 {[%emt 0:01:32]} Qxe3 {[%emt 0:07:36]} 28. fxe3 {[%emt 0:00:02]} e5 {[%emt 0:00:38]} 29. Qg5+ {[%emt 0:00:37]} Kh7 {[%emt 0:00:49]} 30. Qh5+ {[%emt 0:01:14]} Kg7 {[%emt 0:00:10] ...Rg8 is the strong threat.} 31. Qg5+ {[%emt 0:00:19]} Kh7 {[%emt 0:00:04] White must now prevent ...Rg8.} 32. Qh5+ {[%emt 0:00:55]} Kg7 {[%emt 0:00:05] Threatens to win with ...Rg8.} 33. Qg5+ {[%emt 0:00:08]} Kh7 {[%emt 0:00:05] A fantastic game!   Weighted Error Value: White=0.48/Black=0.49} 1/2-1/2

[Event "European Women-ch 2023"]
[Site "Petrovac"]
[Date "2023.03.25"]
[Round "7.3"]
[White "Guichard, Pauline"]
[Black "Khotenashvili, Bela"]
[Result "1/2-1/2"]
[Annotator "TA"]
[ECO "A43"]
[WhiteElo "2379"]
[BlackElo "2491"]
[PlyCount "62"]
[EventDate "2023.03.15"]
[EventType "swiss"]
[EventCountry "MNE"]
[SourceTitle "playchess.com"]
[Source "ChessBase"]
[SourceQuality "1"]
[TimeControl "40/5400+30:1800+30"]

{[%evp 10,62,72,67,88,33,27,27,27,31,24,13,48,24,92,32,35,24,52,54,50,23,22,0,0,-16,0,0,41,0,0,0,19,10,21,17,21,0,0,-14,0,-16,0,0,0,0,0,0,0,0,0,0,0,0,0]} 1. d4 {[%emt 0:00:02]} g6 {[%emt 0:02:38]} 2. c4 {[%emt 0:00:13]} Bg7 {[%emt 0:00:07]} 3. Nc3 {[%emt 0:00:20]} c5 {[%emt 0:00:18]} 4. d5 {[%emt 0:00:26]} d6 {[%emt 0:00:23]} 5. e4 {[%emt 0:00:47]} Bxc3+ {[%emt 0:02:20]} 6. bxc3 {[%emt 0:00:08]} e5 {[%emt 0:00:03] A43: Schmid Benoni.} 7. f4 {[%emt 0:00:17]} (7. Bd3 $16) 7... exf4 $14 {[%emt 0:00:07]} 8. Bxf4 {[%emt 0:00:23]} Qh4+ $1 {[%emt 0:00:19] White has an edge.} 9. Bg3 {[%emt 0:01:30]} Qe7 {[%emt 0:00:15]} (9... Qxe4+ 10. Kd2 $16) 10. Nf3 {[%emt 0:05:41] And now Be2 would win.} Nd7 {[%emt 0:00:28]} (10... Nf6 $5 {[%cal Rf6e4]}) 11. Bd3 {[%emt 0:07:18] [#] Black must now prevent 0-0.} (11. Be2 $5 {[%cal Re1g1]}) 11... Ngf6 $146 {[%emt 0:00:26]} (11... Nh6 $1 $11) ({Predecessor:} 11... Nh6 12. e5 Nxe5 13. Nxe5 dxe5 14. O-O O-O 15. Qd2 Nf5 16. Bxf5 Bxf5 17. Rf2 f6 {0-1 Duda,J (2731)-Carlsen,M (2859) Meltwater Tour Final rapid 2022 (7.2)}) 12. O-O {[%emt 0:01:21]} (12. Bh4 $16) 12... Ng4 $1 {[%emt 0:00:20]} 13. Qd2 {[%emt 0:14:03] Dodges Ne3} Nge5 {[%emt 0:05:06]} 14. Nxe5 {[%emt 0:05:11]} Nxe5 {[%emt 0:00:02]} 15. Bxe5 {[%emt 0:00:16]} (15. Rf2 $5 {[%cal Ra1f1]}) 15... Qxe5 {[%emt 0:01:22]} 16. Qh6 {[%emt 0:00:50]} Bd7 {[%emt 0:31:54]} 17. Rab1 {[%emt 0:05:43]} b6 {[%emt 0:03:54]} (17... Qxc3 $5 18. Rf3 O-O-O $11) 18. Rf3 {[%emt 0:09:07]} O-O-O {[%emt 0:19:24]} 19. Rxf7 {[%emt 0:00:54]} Qxc3 {[%emt 0:00:14] The position is equal.} 20. Rd1 {[%emt 0:12:28][%cal Bb1d1,Bd1f1,Bf1f7][%mdl 32]} (20. Rxh7 $2 Qxd3 21. Re1 Qd4+ 22. Kh1 Rxh7 23. Qxh7 Rh8 $19) 20... Qd4+ {[%emt 0:17:17]} 21. Kh1 {[%emt 0:00:19]} Rde8 {[%emt 0:03:19]} (21... Bg4 $2 22. Be2 Qxe4 23. Qg7 $18) 22. h3 {[%emt 0:03:06]} (22. Rxh7 Qe5 23. g3 (23. Qxg6 $2 Rxh7 24. Qxh7 Rh8 $19) 23... Rxh7 24. Qxh7 Qf6 $15) 22... Qe5 {[%emt 0:01:55]} 23. Rdf1 {[%emt 0:08:17]} (23. Rxh7 $2 {loses.} Rxh7 24. Qxh7 Rh8 $19) 23... Re7 {[%emt 0:00:30]} 24. R7f2 {[%emt 0:05:13]} Rhe8 {[%emt 0:01:39]} 25. Rf3 {[%emt 0:11:07]} Kc7 {[%emt 0:00:35]} 26. Rf7 {[%emt 0:01:41]} Rxf7 {[%emt 0:04:14]} 27. Rxf7 {[%emt 0:00:05]} Re7 {[%emt 0:00:04]} 28. Qxh7 {[%emt 0:05:27]} ({Don't play} 28. Rxh7 Rxh7 29. Qxh7 Qc3 $15) 28... Qa1+ {[%emt 0:00:12]} 29. Kh2 {[%emt 0:00:09]} Qe5+ {[%emt 0:01:01]} 30. Kh1 {[%emt 0:00:06]} Qa1+ {[%emt 0:01:56]} 31. Kh2 {[%emt 0:00:09]} Qe5+ {[%emt 0:01:35] Weighted Error Value: White=0.14 (very precise) /Black=0.10 (very precise)} 1/2-1/2

[Event "European Women-ch 2023"]
[Site "Petrovac"]
[Date "2023.03.25"]
[Round "7.3"]
[White "Hapala, Elisabeth"]
[Black "Calzetta Ruiz, Monica"]
[Result "0-1"]
[Annotator "TA"]
[ECO "B29"]
[WhiteElo "2072"]
[BlackElo "2185"]
[PlyCount "60"]
[EventDate "2023.03.15"]
[EventType "swiss"]
[EventCountry "MNE"]
[SourceTitle "playchess.com"]
[Source "ChessBase"]
[SourceQuality "1"]
[TimeControl "40/5400+30:1800+30"]

{[%evp 10,60,38,34,46,41,26,60,37,31,33,17,12,1,58,39,33,25,2,0,113,86,83,18,19,0,0,0,-10,-12,15,31,28,14,83,-151,-152,-433,-426,-438,-435,-497,-496,-537,-537,-537,-537,-746,-759,-767,-736,-1464,-839]} 1. e4 {[%emt 0:00:01]} c5 {[%emt 0:00:11]} 2. Nf3 {[%emt 0:00:05]} Nf6 {[%emt 0:00:06]} 3. e5 {[%emt 0:00:30]} Nd5 {[%emt 0:00:06]} 4. Nc3 {[%emt 0:00:34]} e6 {[%emt 0:00:12]} 5. Ne4 {[%emt 0:00:59]} Nc6 {[%emt 0:00:39]} 6. c4 {[%emt 0:00:28] Threatens to win with d4.} f5 $1 {[%emt 0:00:00][%mdl 4] is more profitable than 6...Nb6 at the moment. B29: Sicilian: 2 Nf3 Nf6 (Nimzowitsch Variation).} 7. cxd5 {[%emt 0:14:42] Nc3 would be deadly.} fxe4 {[%emt 0:00:00]} 8. dxc6 {[%emt 0:00:06] And now Ng1 would win.} exf3 {[%emt 0:00:00] White is slightly better.} 9. Qxf3 {[%emt 0:03:07]} dxc6 {[%emt 0:00:03]} 10. Bd3 {[%emt 0:07:50]} Qd5 {[%emt 0:00:32] [#]} 11. Qg3 $146 {[%emt 0:05:04]} ({Predecessor:} 11. Qh5+ Kd8 12. Qe2 Qxg2 13. Be4 Qh3 14. d4 cxd4 15. Bg5+ Kc7 16. O-O-O h6 17. Bd2 {0-1 Wagner,D (2581)-Nadimifar,A (2210) Titled Tuesday intern op 13th Apr blitz 2021 (3)}) 11... Bd7 {[%emt 0:47:46] [#]} ({Black should play} 11... c4 $11 12. Bxh7 {[%mdl 64] Remove Defender, Decoy} Rxh7 13. Qg6+ Kd7 14. Qxh7 Qxg2) 12. Bxh7 $1 {[%emt 0:28:45][%mdl 64] Remove Defender, Decoy} O-O-O {[%emt 0:04:12]} 13. Bg6 {[%emt 0:00:16]} c4 {[%emt 0:01:53]} 14. O-O {[%emt 0:01:43]} Bc5 {[%emt 0:00:30]} (14... Be8 $11) 15. d3 $16 {[%emt 0:06:02]} cxd3 {[%emt 0:02:54]} 16. Bxd3 {[%emt 0:00:55]} (16. Rd1 $16) 16... Bd4 $1 $11 {[%emt 0:02:00]} 17. Bf4 {[%emt 0:10:22]} (17. Qxg7 $2 Rdg8 18. Bh6 Rxg7 19. Bxg7 Rg8 $19) 17... g5 $1 {[%emt 0:02:20][%mdl 64] Deflection} 18. Bxg5 {[%emt 0:00:07] Hoping for Rae1.} (18. Qxg5 $2 Rdg8 19. Bg6 Be8 $19) 18... Bxe5 {[%emt 0:04:58]} 19. f4 {[%emt 0:00:19]} Bd4+ {[%emt 0:01:01][%mdl 1024] Black has compensation.} 20. Kh1 {[%emt 0:00:20]} Rdg8 {[%emt 0:03:14][%cal Oe6e5] aiming for ...e5!} 21. Qf3 {[%emt 0:05:24]} Qd6 {[%emt 0:00:10]} (21... Qxf3 $1 $11 {remains equal.} 22. Rxf3 Bxb2) 22. g3 $2 {[%emt 0:02:10] [#]} (22. h3 $16 {is necessary to keep the advantage.}) 22... e5 $1 $17 {[%emt 0:00:56] ...exf4 is the strong threat.} 23. Rad1 $2 {[%emt 0:01:43] This costs White the game.} (23. h4 $17 exf4 24. Bxf4) 23... exf4 $19 {[%emt 0:03:26][%mdl 64] Remove Defender. Black is clearly winning.} 24. Qxf4 {[%emt 0:09:12]} (24. Bxf4 {is a self mate.} Rxh2+ 25. Kxh2 Rh8+) 24... Be5 {[%emt 0:07:17][%cal Bd4e5,Be5f4,Bf4g3][%mdl 32]} 25. Bf5 {[%emt 0:00:16]} Bxf4 {[%emt 0:01:12]} 26. Bxd7+ {[%emt 0:00:13]} Qxd7 {[%emt 0:04:14]} ({Worse is} 26... Kxd7 27. Bxf4 $15) 27. Rxd7 {[%emt 0:00:04]} Bxg3 {[%emt 0:02:23]} ({And not} 27... Kxd7 28. Bxf4 Rh3 29. Kg2 $15) (27... Bxg5 28. Rff7 $17) 28. Rff7 {[%emt 0:02:23]} Rxh2+ {[%emt 0:00:19]} 29. Kg1 {[%emt 0:00:02]} Rxg5 {[%emt 0:00:46]} 30. Kf1 {[%emt 0:01:12]} Rf5+ {[%emt 0:02:12] Artfully played by Calzetta Ruiz.   Weighted Error Value: White=0.76/Black=0.15 (very precise)} 0-1

[Event "European Women-ch 2023"]
[Site "Petrovac"]
[Date "2023.03.25"]
[Round "7.4"]
[White "Bulmaga, Irina"]
[Black "Mkrtchian, Lilit"]
[Result "1/2-1/2"]
[Annotator "TA"]
[ECO "B12"]
[WhiteElo "2438"]
[BlackElo "2379"]
[PlyCount "75"]
[EventDate "2023.03.15"]
[EventType "swiss"]
[EventCountry "MNE"]
[SourceTitle "playchess.com"]
[Source "ChessBase"]
[SourceQuality "1"]
[TimeControl "40/5400+30:1800+30"]

{[%evp 12,75,30,26,29,34,30,21,42,20,27,18,17,25,24,22,28,22,29,0,11,11,18,0,0,-6,-6,-8,16,1,20,22,14,15,14,16,17,7,0,0,7,0,0,-35,-6,-11,0,0,0,0,20,8,14,6,20,0,0,0,0,0,0,0,0,0,0,0]} 1. e4 {[%emt 0:00:04]} c6 {[%emt 0:00:38]} 2. d4 {[%emt 0:00:09]} d5 {[%emt 0:00:22]} 3. e5 {[%emt 0:00:07]} Bf5 {[%emt 0:00:16]} 4. Nf3 {[%emt 0:00:11]} e6 {[%emt 0:00:15]} 5. Be2 {[%emt 0:00:08]} Ne7 {[%emt 0:00:37][%cal Bg8e7,Be7c6,Bc6b4][%mdl 32]} 6. O-O {[%emt 0:00:10]} Bg6 {[%emt 0:00:37]} 7. Nbd2 {[%emt 0:00:34]} c5 {[%emt 0:00:35] B12: Caro-Kann: Advance Variation.} 8. c4 {[%emt 0:01:18]} cxd4 {[%emt 0:00:40]} 9. Nxd4 {[%emt 0:06:17]} Nec6 {[%emt 0:00:14]} 10. N2f3 {[%emt 0:04:06] Hoping for cxd5.} dxc4 {[%emt 0:03:08]} 11. Bxc4 {[%emt 0:03:20]} Be7 {[%emt 0:01:31]} 12. Be3 {[%emt 0:14:34]} O-O {[%emt 0:03:31]} 13. Rc1 {[%emt 0:02:53]} Bh5 {[%emt 0:25:52]} 14. Qc2 {[%emt 0:01:22]} Nb4 {[%emt 0:09:24] Wards off Bd3} 15. Qe4 {[%emt 0:01:27]} N8c6 {[%emt 0:02:13] [#]} 16. a3 $146 {[%emt 0:03:25]} ({Predecessor:} 16. h4 Nxd4 17. Nxd4 Nd5 18. Nf5 Nxe3 19. Nxe3 Qb6 20. b3 Rad8 21. Nc2 Rd2 22. Qf4 {0-1 Hoolt,S (2405)-Girya,O (2484) Wch Blitz (Women) 2017 (5)}) 16... Bg6 {[%emt 0:09:26]} 17. Qg4 {[%emt 0:13:23]} Nxd4 {[%emt 0:03:00]} 18. Bxd4 {[%emt 0:07:10]} Nc6 {[%emt 0:06:27] [#] White must now prevent ...Bf5.} 19. Bc3 {[%emt 0:03:50]} Rc8 {[%emt 0:03:23]} 20. h4 {[%emt 0:05:12][%cal Bh2h4,Bh4h5][%mdl 32]} Rc7 {[%emt 0:05:08]} (20... h5 $5 {[%cal Rh5g4]} 21. Qg3 Bf5 $11) 21. h5 {[%emt 0:04:08]} Bf5 {[%emt 0:00:38]} 22. Qf4 {[%emt 0:01:07] [#] Rfd1 is the strong threat.} h6 {[%emt 0:00:15]} 23. Rcd1 {[%emt 0:04:38]} Rd7 {[%emt 0:00:33]} 24. Rxd7 {[%emt 0:00:36]} Qxd7 {[%emt 0:00:03]} 25. g4 {[%emt 0:00:48]} Bh7 {[%emt 0:00:14]} 26. Kh1 {[%emt 0:04:59]} Rc8 {[%emt 0:07:02]} 27. Bb3 {[%emt 0:05:17]} Qd3 {[%emt 0:02:26]} 28. Rd1 {[%emt 0:02:40] The position is equal.} Qe4 {[%emt 0:01:18]} (28... Qb5 {feels hotter.} 29. Ba4 Qc5 30. Kg2 Rd8) 29. Qxe4 {[%emt 0:01:24]} Bxe4 {[%emt 0:00:03]} 30. Kg2 {[%emt 0:00:15]} Rd8 {[%emt 0:04:56]} 31. Rxd8+ {[%emt 0:00:51]} Bxd8 {[%emt 0:00:08]} 32. Kg3 {[%emt 0:00:54]} b5 {[%emt 0:08:30]} 33. Nd2 {[%emt 0:01:55]} Bd3 {[%emt 0:00:09]} 34. Bd1 {[%emt 0:02:45]} Bb6 {[%emt 0:02:07]} 35. Nb3 {[%emt 0:00:24]} Bc4 {[%emt 0:00:39]} 36. Nd2 {[%emt 0:00:52]} Bd3 {[%emt 0:00:02]} 37. Nb3 {[%emt 0:01:24]} Bc4 {[%emt 0:00:04]} 38. Nd2 {[%emt 0:00:55] Weighted Error Value: White=0.06 (flawless) /Black=0.04 (flawless)} 1/2-1/2

[Event "European Women-ch 2023"]
[Site "Petrovac"]
[Date "2023.03.25"]
[Round "7.4"]
[White "Kulon, Klaudia"]
[Black "Javakhishvili, Lela"]
[Result "1/2-1/2"]
[Annotator "TA"]
[ECO "C70"]
[WhiteElo "2290"]
[BlackElo "2443"]
[PlyCount "97"]
[EventDate "2023.03.15"]
[EventType "swiss"]
[EventCountry "MNE"]
[SourceTitle "playchess.com"]
[Source "ChessBase"]
[SourceQuality "1"]
[TimeControl "40/5400+30:1800+30"]

{[%evp 9,97,39,30,37,34,36,42,35,35,35,37,31,38,33,38,23,37,12,11,9,19,13,24,8,43,0,0,0,0,0,0,0,0,0,0,0,0,0,0,0,0,0,1,-8,0,-27,0,0,0,0,0,-12,0,0,12,11,20,12,73,46,59,16,20,13,18,0,2,2,2,-12,-12,-12,-12,-13,-11,-59,-59,-59,-59,-59,-21,-21,-19,-32,-8,-345,0,0,0,0]} 1. e4 {[%emt 0:00:03]} e5 {[%emt 0:00:23]} 2. Nf3 {[%emt 0:00:05]} Nc6 {[%emt 0:00:05]} 3. Bb5 {[%emt 0:00:05]} a6 {[%emt 0:00:49]} 4. Ba4 {[%emt 0:00:14]} Nge7 {[%emt 0:00:15]} 5. c3 {[%emt 0:01:42]} Ng6 {[%emt 0:00:09]} 6. d4 {[%emt 0:03:36] C70: Ruy Lopez: 3...a6 4 Ba4, Norwegian and Delayed Schliemann.} exd4 {[%emt 0:01:07]} 7. cxd4 {[%emt 0:00:04]} Bb4+ {[%emt 0:00:20]} 8. Nc3 {[%emt 0:00:46] White is slightly better.} d5 {[%emt 0:01:42]} 9. exd5 {[%emt 0:01:47][%mdl 64] Pin} Bxc3+ {[%emt 0:00:56][%mdl 64] Remove Defender} 10. bxc3 {[%emt 0:00:05]} Qxd5 {[%emt 0:00:05]} 11. O-O {[%emt 0:01:27][%cal Oc3c4] aiming for c4!} O-O $1 {[%emt 0:01:00]} 12. Bb3 {[%emt 0:10:54]} Qh5 {[%emt 0:02:32]} 13. Ng5 {[%emt 0:05:39]} Qxd1 {[%emt 0:00:42]} 14. Rxd1 {[%emt 0:00:02] [#] Strongly threatening Ba3.} h6 $146 {[%emt 0:03:41]} ({Predecessor:} 14... Na5 15. f3 Bf5 16. Ne4 Nxb3 17. axb3 Rfe8 18. Re1 a5 19. c4 b6 20. Kf2 h5 {½-½ Lobanov,S (2531)-Romanov,E (2570) TUR-chT Ankara 2022 (2.4)}) 15. Ne4 {[%emt 0:00:03]} Na5 {[%emt 0:00:35]} 16. Bc2 {[%emt 0:01:09]} Rd8 {[%emt 0:07:54]} 17. a4 {[%emt 0:06:37]} b6 {[%emt 0:01:35]} 18. Re1 {[%emt 0:04:56]} Be6 {[%emt 0:10:43]} 19. f3 {[%emt 0:03:08]} Bb3 {[%emt 0:05:13]} 20. Bb1 {[%emt 0:02:55]} Re8 {[%emt 0:08:41]} 21. Kf2 {[%emt 0:02:09]} Rad8 {[%emt 0:10:06]} 22. Bd3 {[%emt 0:10:29]} Bc4 {[%emt 0:01:05]} 23. Bc2 {[%emt 0:00:19]} Re6 {[%emt 0:03:06]} 24. Rb1 {[%emt 0:03:29]} Ne7 {[%emt 0:05:08]} 25. g4 {[%emt 0:01:42]} Ba2 {[%emt 0:08:13]} 26. Rb4 {[%emt 0:02:00]} Re8 {[%emt 0:04:31]} 27. Rg1 {[%emt 0:03:10]} Nd5 {[%emt 0:05:54]} 28. Rb2 {[%emt 0:00:17]} Bc4 {[%emt 0:00:05]} 29. h4 {[%emt 0:01:59]} Nb7 {[%emt 0:03:22]} 30. g5 {[%emt 0:02:11]} h5 {[%emt 0:00:40]} 31. Bd2 {[%emt 0:01:17]} c5 {[%emt 0:03:48]} 32. Re1 {[%emt 0:04:30]} cxd4 {[%emt 0:04:06]} 33. cxd4 {[%emt 0:00:06]} b5 {[%emt 0:04:36] [#]} (33... Nd8 $11) 34. axb5 $1 $16 {[%emt 0:01:10]} axb5 {[%emt 0:00:02]} 35. Ng3 {[%emt 0:02:45]} Rxe1 {[%emt 0:00:43]} (35... Nd8 {is interesting.} 36. Be4 Nc6 37. Nxh5 Nxd4 38. Ng3 Nb3) 36. Bxe1 {[%emt 0:00:01]} Nd8 {[%emt 0:01:43]} 37. Bd2 {[%emt 0:03:31][%cal Oc2e4]} (37. Be4 $5 {[%cal Re4d5]}) 37... Nc6 {[%emt 0:00:51]} 38. Be4 {[%emt 0:02:44]} Nxd4 {[%emt 0:00:16]} 39. Bxd5 {[%emt 0:03:58]} Bxd5 {[%emt 0:00:08]} 40. Bc3 {[%emt 0:00:00]} Nxf3 {[%emt 0:00:00]} 41. Rxb5 {[%emt 0:00:54]} Rc8 {[%emt 0:15:38]} 42. Bb2 {[%emt 0:10:18] [#]} (42. Bxg7 $11 {is more appropriate.} Bc6 43. Rc5) 42... Nxh4 $1 {[%emt 0:04:24]} 43. Nxh5 {[%emt 0:00:59]} Rc2+ {[%emt 0:03:07]} 44. Ke3 {[%emt 0:05:14][%cal Ob2g7]} Bc6 {[%emt 0:01:52]} (44... Bc4 $5 45. Rb4 (45. Rb8+ Kh7 $15) 45... Ba6 $15) 45. Rb8+ {[%emt 0:00:23]} Kh7 {[%emt 0:00:01]} 46. Bxg7 {[%emt 0:03:48]} Kg6 {[%emt 0:05:22]} (46... Ng2+ $5 47. Kd3 Ne1+ 48. Ke3 Kg6 $15) 47. Bf6 $2 {[%emt 0:04:52][%mdl 8192] [#]} Kxh5 $2 {[%emt 0:02:01]} (47... Ng2+ $1 $19 48. Kd4 Kxh5) 48. Rh8+ $1 $11 {[%emt 0:00:04]} Kg6 {[%emt 0:00:45] White must now prevent ...Ng2+.} 49. Rxh4 {[%emt 0:00:06] Weighted Error Value: White=0.19 (very precise) /Black=0.15 (very precise)} 1/2-1/2